bitfinex/quotes_ETHUSD_20260219
["timestamp","ask_amount","ask_price","bid_price","bid_amount"]
[1771514406002,1.89582113,1926.4,1925.3,1.43606085]
[1771514406003,1.29782113,1926.4,1925.3,1.43606085]
[1771514406206,0.598,1926.2,1925.3,1.43606085]
[1771514406417,1.89582113,1926.4,1925.3,1.43606085]
[1771514406727,3.28431108,1926.4,1925.3,1.43606085]
[1771514406910,3.28431108,1926.4,1925.2,1.29856638]
[1771514406911,1.38848995,1926.3,1925.2,1.29856638]
[1771514407420,1.38848995,1926.3,1925.1,1.29972473]
[1771514407421,1.38848995,1926.1,1925.1,1.29972473]
[1771514407622,1.38848995,1926.1,1925.0,7.17363183]
[1771514407623,2.92148995,1926.0,1925.0,0.57840079]
[1771514407796,1.38848995,1925.9,1925.0,1.29869101]
[1771514407998,1.38848995,1925.9,1924.9,0.0011]
[1771514408226,1.38848995,1925.6,1924.9,0.0011]
[1771514408425,0.599,1925.5,1924.9,0.0011]
[1771514408826,1.38848995,1925.6,1924.9,0.0011]
[1771514409022,0.599,1925.5,1924.9,1.29985127]
[1771514409217,0.599,1925.5,1924.9,0.0011]
[1771514409418,1.29843149,1925.4,1924.9,0.0011]
[1771514410026,2.68692144,1925.4,1924.7,0.0011]
[1771514411144,1.29843149,1925.4,1924.4,0.0011]
[1771514411349,1.38848995,1925.1,1924.4,0.0011]
[1771514411642,1.29876876,1924.9,1924.4,0.0011]
[1771514411946,1.29843149,1925.4,1924.4,1.37383792]
[1771514412142,0.6,1925.3,1924.4,1.37383792]
[1771514412341,1.29775747,1926.4,1924.6,8.97275676]
[1771514412541,0.6,1926.3,1924.9,1.37273792]
[1771514412720,0.001,1926.2,1925.0,1.37273792]
[1771514412924,0.001,1926.2,1925.0,8.97275676]
[1771514413110,0.601,1926.2,1925.1,1.37273792]
[1771514413462,1.2979596,1926.1,1925.2,1.29856638]
[1771514413955,0.001,1926.2,1925.3,1.37273792]
[1771514415242,1.29892035,1926.2,1925.3,1.37273792]
[1771514415561,1.89792035,1926.2,1925.4,1.29843149]
[1771514415846,1.29892035,1926.2,1925.4,1.29843149]
[1771514416018,1.89792035,1926.2,1925.4,1.29843149]
[1771514416339,1.89792035,1926.2,1925.4,2.67116941]
[1771514417527,3.464152,1926.1,1925.2,1.29856638]
[1771514417729,0.599,1926.0,1925.2,1.29856638]
[1771514418040,0.599,1926.0,1925.1,3.60735916]
[1771514418414,1.29892035,1926.2,1925.2,1.37273792]
[1771514418621,0.599,1926.1,1925.2,1.37273792]
[1771514419048,1.29892035,1926.2,1925.2,1.37273792]
[1771514419226,0.599,1926.1,1925.2,1.37273792]
[1771514419427,0.599,1926.1,1925.3,1.29849893]
[1771514419625,0.599,1926.1,1925.4,1.37273792]
[1771514419849,0.001,1926.2,1925.4,1.37273792]
[1771514420031,1.29890698,1926.2,1925.4,1.37273792]
[1771514420227,0.001,1926.2,1925.4,1.37273792]
[1771514420426,1.29891177,1926.2,1925.3,1.29849893]
[1771514420647,0.599,1926.1,1925.3,1.29849893]
[1771514421233,0.599,1926.1,1925.3,2.67123685]
[1771514421555,1.29889934,1926.2,1925.3,3.27423685]
[1771514422165,1.01769568,1926.2,1925.3,3.27423685]
[1771514423745,5.78948155,1926.3,1925.4,1.37273792]
[1771514423746,0.598,1926.3,1925.4,1.37273792]
[1771514424140,0.598,1926.5,1925.4,1.37273792]
[1771514424342,1.29767421,1926.6,1925.4,1.37273792]
[1771514424545,1.89567421,1926.6,1925.4,1.37273792]
[1771514425064,1.29759945,1926.7,1925.4,1.37273792]
[1771514425363,1.29759945,1926.7,1925.4,1.37383792]
[1771514425535,1.29759945,1926.7,1925.5,1.37273792]
[1771514425731,1.29759945,1926.7,1925.7,1.37273792]
[1771514425933,1.29759945,1926.7,1925.9,1.37273792]
[1771514426428,1.29759945,1926.7,1925.8,0.603]
[1771514426632,0.4493625,1926.6,1925.8,0.603]
[1771514426851,1.29759945,1926.7,1925.8,0.603]
[1771514427051,0.4493625,1926.6,1925.8,0.603]
[1771514427337,1.89559945,1926.7,1925.8,1.97573792]
[1771514427950,1.89559945,1926.7,1925.9,1.29809439]
[1771514428564,1.89559945,1926.7,1925.8,7.16824432]
[1771514428565,0.598,1926.6,1925.8,1.90116119]
[1771514429652,2.6860894,1926.7,1925.8,1.90116119]
[1771514429968,0.598,1926.6,1925.8,1.90116119]
[1771514430136,5.63998775,1926.6,1925.8,1.90116119]
[1771514430330,5.19062525,1926.6,1925.8,1.90116119]
[1771514430638,1.29762275,1926.6,1925.8,1.90116119]
[1771514430857,1.89462275,1926.6,1925.8,1.90116119]
[1771514431761,2.34398525,1926.6,1925.8,1.90116119]
[1771514432063,0.4493625,1926.5,1925.8,1.90116119]
[1771514432467,1.89462275,1926.6,1925.8,1.90116119]
[1771514432657,1.89462275,1926.6,1925.8,0.603]
[1771514432846,0.4493625,1926.5,1925.8,1.90115955]
[1771514433370,3.2831127,1926.6,1925.8,0.603]
[1771514433662,3.2831127,1926.6,1925.6,1.29829663]
[1771514433663,1.83785245,1926.5,1925.6,1.29829663]
[1771514433835,1.38848995,1926.5,1925.6,1.29829663]
[1771514434032,1.89462275,1926.6,1925.7,1.37273792]
[1771514434033,0.597,1926.4,1925.7,1.37273792]
[1771514434536,1.29776001,1926.4,1925.8,1.2981618]
[1771514435268,0.597,1926.5,1925.8,1.2981618]
[1771514435474,1.89469744,1926.5,1925.8,2.67089972]
[1771514435846,1.89469531,1926.5,1925.8,2.67089972]
[1771514436053,5.18982396,1926.9,1925.9,1.37273792]
[1771514436366,1.2975554,1926.7,1925.9,2.67080291]
[1771514436549,1.30803302,1926.6,1925.5,2.64192472]
[1771514436876,1.30803302,1926.5,1925.4,1.2995138]
[1771514437056,0.597,1926.4,1925.4,1.2995138]
[1771514437570,0.597,1926.4,1925.4,0.0011]
[1771514437571,1.30803302,1926.2,1925.4,0.0011]
[1771514437739,1.30803302,1926.2,1925.3,0.0011]
[1771514437941,1.90503302,1926.1,1925.3,0.0011]
[1771514438257,1.30803302,1925.9,1925.1,0.0011]
[1771514438461,0.6433808,1925.1,1924.8,0.0011]
[1771514438671,0.597,1925.2,1924.7,0.0011]
[1771514439875,1.30803302,1925.4,1924.7,0.0011]
[1771514440070,1.532,1925.3,1924.7,0.0011]
[1771514440271,1.30803302,1925.2,1924.7,0.0011]
[1771514440475,1.29863383,1925.1,1924.5,0.0011]
[1771514440675,3.05602935,1925.1,1924.5,0.0011]
[1771514440976,0.597,1925.0,1924.5,0.0011]
[1771514441487,0.598,1924.9,1924.5,0.0011]
[1771514441672,2.60666685,1925.1,1924.5,0.0011]
[1771514441848,0.598,1925.0,1924.5,0.0011]
[1771514442158,0.598,1925.3,1924.5,0.0011]
[1771514442551,1.29856638,1925.2,1924.5,0.0011]
[1771514443983,1.29843149,1925.4,1924.5,1.34466066]
[1771514444148,0.598,1925.3,1924.5,1.34466066]
[1771514444349,0.598,1925.3,1924.5,0.0011]
[1771514444578,1.29856638,1925.2,1924.5,0.0011]
[1771514445982,1.2985514,1925.3,1924.5,0.0011]
[1771514446147,1.29829663,1925.6,1924.5,1.34466066]
[1771514446350,0.598,1925.3,1924.5,1.34466066]
[1771514446657,2.23429663,1925.6,1924.7,1.34356066]
[1771514446658,1.29838249,1925.5,1924.7,1.34356066]
[1771514446856,1.2981261,1925.9,1924.7,1.34356066]
[1771514447089,0.598,1925.8,1924.9,1.34356066]
[1771514448250,1.2981261,1925.9,1924.9,1.34356066]
[1771514448451,0.598,1925.8,1924.9,1.34356066]
[1771514449392,0.598,1926.1,1925.1,1.34356066]
[1771514449577,5.19183842,1926.2,1925.1,1.34356066]
[1771514449783,0.598,1926.1,1925.1,1.34356066]
[1771514450119,1.29782484,1926.3,1925.2,1.34356066]
[1771514450323,0.598,1926.2,1925.2,1.34356066]
[1771514450484,1.29882484,1926.3,1925.2,1.34356066]
[1771514451382,1.29882484,1926.3,1925.3,1.29849893]
[1771514451930,1.30803302,1926.2,1925.2,2.6421084]
[1771514453336,0.598,1926.1,1925.2,2.6421084]
[1771514453518,1.29802699,1926.0,1925.2,2.6421084]
[1771514454610,2.49424231,1925.7,1924.7,2.64355361]
[1771514454910,2.49424231,1925.7,1924.7,2.64354625]
[1771514455517,2.49424231,1925.7,1924.7,1.34466066]
[1771514455702,1.29829663,1925.6,1924.7,1.34466066]
[1771514455889,1.29829663,1925.6,1924.7,0.0011]
[1771514455890,0.599,1925.5,1924.7,0.0011]
[1771514456700,2.60632965,1925.6,1924.7,1.29999838]
[1771514456701,0.599,1925.4,1924.7,1.29999838]
[1771514457007,0.599,1925.4,1924.7,2.64355904]
[1771514457322,1.29829663,1925.6,1924.7,2.64355904]
[1771514457323,1.29829663,1925.6,1924.7,2.64355638]
[1771514457496,0.599,1925.3,1924.7,2.64355638]
[1771514457697,0.599,1925.4,1924.7,2.64355638]
[1771514458315,0.598,1925.4,1924.7,2.64355638]
[1771514458520,0.598,1925.4,1924.7,2.64356096]
[1771514459019,0.598,1925.4,1924.7,1.34466066]
[1771514459217,0.598,1925.4,1924.7,2.64354628]
[1771514459517,0.598,1925.8,1924.8,1.34356066]
[1771514459713,1.89620886,1925.8,1925.0,1.34356066]
[1771514460289,1.89620886,1925.8,1924.7,2.64351944]
[1771514460590,3.20424188,1925.8,1924.7,2.64351944]
[1771514461007,0.598,1925.7,1924.8,1.36608]
[1771514461488,2.60624188,1925.8,1924.8,1.36608]
[1771514461711,1.29818638,1925.8,1925.0,1.36608]
[1771514461918,0.598,1925.7,1925.0,1.36608]
[1771514462730,1.29818638,1925.8,1925.0,1.36608]
[1771514462900,1.89618638,1925.8,1925.0,1.36608]
[1771514463300,1.89618638,1925.8,1924.8,1.29883624]
[1771514463709,1.89618638,1925.8,1924.8,2.66601624]
[1771514463909,1.89618638,1925.8,1924.8,1.36718]
[1771514464090,1.32450793,1925.7,1924.8,0.0011]
[1771514465519,1.32450793,1925.7,1924.8,1.29992058]
[1771514466019,1.29829663,1925.6,1924.8,0.0011]
[1771514466195,1.89629663,1925.6,1924.8,0.0011]
[1771514467432,1.44208247,1925.3,1924.5,0.0011]
[1771514467615,1.44208247,1925.1,1924.4,0.0011]
[1771514467811,0.936,1925.0,1924.1,0.0011]
[1771514468011,1.44208247,1924.7,1924.1,0.0011]
[1771514468199,0.598,1924.6,1924.1,0.0011]
[1771514468924,1.29883624,1924.8,1924.1,0.0011]
[1771514469127,0.599,1924.5,1924.1,0.0011]
[1771514470107,1.8980436,1924.5,1924.1,0.0011]
[1771514471941,1.44208247,1924.4,1923.9,0.0011]
[1771514472111,2.74125619,1924.3,1923.7,0.0011]
[1771514473223,1.44208247,1924.0,1923.2,0.0011]
[1771514473423,1.29917372,1924.3,1923.2,1.30101602]
[1771514473625,0.6,1924.2,1923.2,1.30101602]
[1771514473828,1.44208247,1924.1,1923.2,0.0011]
[1771514474030,1.44208247,1924.1,1923.2,1.3010149]
[1771514474328,2.74145876,1924.0,1923.2,0.0011]
[1771514475304,0.6,1923.9,1923.2,0.0011]
[1771514475531,0.6,1923.8,1923.2,0.0011]
[1771514475836,2.74145876,1924.0,1923.2,0.0011]
[1771514476042,0.6,1923.8,1923.2,0.0011]
[1771514476214,1.29957893,1923.7,1923.2,0.0011]
[1771514476720,2.7416614,1923.7,1923.0,0.0011]
[1771514477321,0.601,1923.6,1923.0,0.0011]
[1771514477504,2.04308247,1923.6,1923.0,0.0011]
[1771514477703,1.44208247,1923.5,1922.9,0.0011]
[1771514478239,1.29978163,1923.4,1922.9,0.0011]
[1771514479006,0.601,1923.3,1922.9,0.0011]
[1771514479201,0.602,1923.7,1922.9,1.34120745]
[1771514479614,1.44208247,1923.6,1922.4,1.30040276]
[1771514479813,1.44208247,1923.6,1922.0,2.7190921]
[1771514479814,1.44208247,1923.3,1922.0,2.7190921]
[1771514480115,1.44208247,1922.9,1921.7,2.27610745]
[1771514480302,1.62893871,1922.6,1921.6,1.30094429]
[1771514480506,2.37808247,1922.5,1921.5,1.30101427]
[1771514480707,1.44208247,1922.3,1921.4,1.30112783]
[1771514480926,1.44208247,1922.3,1921.3,0.0011]
[1771514481125,10.45837211,1922.3,1921.3,1.3022939]
[1771514481434,10.45837211,1922.1,1921.3,0.0011]
[1771514481634,1.44208247,1921.9,1921.3,0.0011]
[1771514482003,0.4493625,1922.7,1921.3,1.3022889]
[1771514482004,1.44208247,1922.2,1921.3,1.3022889]
[1771514482209,1.44208247,1922.0,1921.3,0.0011]
[1771514482736,1.44208247,1921.8,1921.2,0.0011]
[1771514483233,0.602,1921.7,1921.2,0.0011]
[1771514483611,0.602,1921.6,1921.2,0.0011]
[1771514483929,0.0819,1921.6,1921.2,0.0011]
[1771514484435,0.602,1921.6,1921.2,0.0011]
[1771514484732,3.82822419,1921.9,1921.2,0.0011]
[1771514484940,0.602,1921.8,1921.2,0.0011]
[1771514485308,1.44208247,1922.1,1921.2,0.0011]
[1771514485513,0.602,1921.8,1921.2,1.34120745]
[1771514486040,0.602,1921.9,1921.2,1.34120745]
[1771514486236,0.602,1921.9,1921.3,1.30120231]
[1771514486427,1.30074832,1922.0,1921.3,1.30120231]
[1771514486629,1.30071606,1922.1,1921.3,1.30120231]
[1771514486942,0.602,1922.1,1921.3,1.30120231]
[1771514487140,2.74264584,1922.3,1921.3,1.30120231]
[1771514487350,0.602,1922.2,1921.4,1.34010745]
[1771514488237,1.90264592,1922.2,1921.5,1.30106687]
[1771514489442,1.90264592,1922.2,1921.3,0.0011]
[1771514489443,1.44308247,1921.9,1921.3,0.0011]
[1771514489742,1.44208247,1921.7,1921.0,0.0011]
[1771514489942,1.44208247,1921.7,1921.0,1.30248077]
[1771514490146,0.602,1921.6,1921.0,2.64258822]
[1771514490439,0.602,1921.7,1921.0,2.64258822]
[1771514490945,0.602,1921.8,1921.1,1.34010745]
[1771514491441,0.001,1921.9,1921.1,1.34010745]
[1771514491642,0.603,1921.9,1921.1,1.34010745]
[1771514491826,0.001,1921.9,1921.1,1.34010745]
[1771514492223,0.602,1922.4,1921.3,1.34010745]
[1771514492428,1.30052541,1922.3,1921.4,1.30113458]
[1771514492627,2.74260788,1922.3,1921.3,2.6412582]
[1771514492943,2.74260788,1922.3,1921.3,1.30115075]
[1771514493313,1.44208247,1922.2,1921.3,1.30115075]
[1771514494121,5.69484,1922.1,1921.3,1.30115075]
[1771514494321,1.30079608,1921.9,1921.1,1.30133777]
[1771514494923,1.30079608,1921.9,1921.0,2.64260937]
[1771514495334,1.44208247,1921.8,1921.0,0.0011]
[1771514495540,1.30079608,1921.9,1921.0,1.30250545]
[1771514495852,0.602,1921.7,1921.0,0.0011]
[1771514496165,1.44208247,1921.7,1921.0,1.30249661]
[1771514496336,1.90303244,1921.6,1921.0,0.0011]
[1771514496732,0.602,1921.6,1921.0,0.0011]
[1771514496932,1.30079608,1921.9,1921.0,1.399526]
[1771514497147,0.602,1921.8,1921.0,1.399526]
[1771514497549,0.602,1921.8,1921.0,0.0011]
[1771514497959,0.602,1921.7,1921.0,0.0011]
[1771514498454,0.602,1921.6,1921.0,0.0011]
[1771514499859,1.30059307,1922.2,1921.0,1.399526]
[1771514500042,1.90249443,1922.4,1921.0,1.399526]
[1771514500240,0.602,1922.3,1921.0,1.399526]
[1771514500557,0.602,1922.2,1921.2,1.398426]
[1771514500854,2.23739011,1922.5,1921.2,1.398426]
[1771514500855,1.30039011,1922.5,1921.2,1.398426]
[1771514501164,0.602,1922.2,1921.2,1.398426]
[1771514501531,0.001,1921.8,1921.2,1.398426]
[1771514502136,0.001,1921.8,1921.1,0.0011]
[1771514502362,1.30099916,1921.6,1921.1,0.0011]
[1771514503557,0.602,1921.5,1921.1,0.0011]
[1771514504146,0.4493625,1921.4,1920.8,0.0011]
[1771514504372,1.30127003,1921.2,1920.3,1.30182825]
[1771514504656,1.30127003,1921.2,1920.2,6.13066389]
[1771514504657,6.485143,1921.0,1920.2,2.22491576]
[1771514505159,4.646581,1921.0,1920.2,2.22491576]
[1771514505348,2.94301601,1921.1,1920.2,2.22491576]
[1771514505665,0.602,1921.0,1920.2,2.22491576]
[1771514505838,1.90327003,1921.2,1920.3,1.398426]
[1771514506165,0.602,1921.2,1920.3,1.398426]
[1771514506534,0.602,1921.2,1920.4,1.30181212]
[1771514506740,2.70501517,1921.7,1920.5,1.398426]
[1771514506931,2.84099916,1921.6,1920.5,1.398426]
[1771514507166,14.21899749,1922.1,1920.5,1.398426]
[1771514507167,1.40401601,1922.0,1920.5,1.398426]
[1771514507368,1.30187997,1921.8,1920.5,1.398426]
[1771514507579,1.40401601,1921.6,1920.5,1.398426]
[1771514508033,10.542255,1921.4,1920.4,1.30181212]
[1771514508231,1.85337851,1921.3,1920.2,3.62333468]
[1771514508455,5.2053511,1921.2,1920.2,2.22495499]
[1771514508663,0.602,1921.1,1920.2,2.22495499]
[1771514509969,0.602,1921.0,1920.2,2.22495499]
[1771514510283,2.00601601,1921.0,1920.1,1.30195903]
[1771514510455,2.00601601,1921.0,1919.9,0.938]
[1771514510456,1.30147326,1920.9,1919.9,0.938]
[1771514510657,1.30147326,1920.9,1919.9,2.24011648]
[1771514510869,1.40401601,1920.8,1919.9,2.24011648]
[1771514511168,1.40401601,1920.8,1919.3,7.76417357]
[1771514511169,1.40401601,1920.6,1919.5,5.20943823]
[1771514511385,0.4493625,1920.7,1919.1,0.593]
[1771514511386,1.40401601,1920.4,1919.1,7.20219311]
[1771514511674,0.602,1920.3,1919.3,1.398426]
[1771514511977,1.54,1920.3,1919.3,1.398426]
[1771514512190,0.601,1920.2,1919.3,1.398426]
[1771514512356,1.40401601,1920.4,1919.3,1.398426]
[1771514512357,0.601,1920.1,1919.3,1.398426]
[1771514512674,1.30208333,1920.0,1919.2,1.30262609]
[1771514512896,1.40401601,1919.9,1918.8,5.21154395]
[1771514513192,0.601,1919.8,1918.9,1.398426]
[1771514513602,0.601,1919.8,1919.4,0.0011]
[1771514513755,1.30208333,1920.0,1919.4,0.0011]
[1771514513955,2.70607747,1920.1,1919.4,0.0011]
[1771514514264,0.601,1920.0,1919.4,0.0011]
[1771514514460,5.20806208,1920.3,1919.4,0.0011]
[1771514514461,1.30187991,1920.3,1919.4,0.0011]
[1771514514675,6.61143337,1920.4,1919.4,0.0011]
[1771514514676,1.40401601,1920.4,1919.4,0.0011]
[1771514514852,1.90290378,1920.3,1919.4,0.0011]
[1771514515672,3.30691979,1920.3,1919.4,0.0011]
[1771514515869,1.40401601,1920.2,1919.4,0.0011]
[1771514516071,1.539,1920.1,1919.4,0.0011]
[1771514516253,1.40401601,1920.2,1919.4,0.0011]
[1771514516459,0.601,1920.0,1919.4,0.0011]
[1771514516659,1.30221898,1919.8,1919.3,0.0011]
[1771514516974,1.40401601,1919.5,1918.3,1.30323724]
[1771514517310,0.18685624,1919.1,1918.2,0.0561206]
[1771514517453,1.40401601,1919.1,1918.3,1.30323724]
[1771514517858,0.601,1919.0,1918.2,0.0561206]
[1771514518262,1.40401601,1918.9,1918.2,0.0561206]
[1771514518787,1.40401601,1918.7,1917.5,2.70213897]
[1771514518953,1.40401601,1918.7,1917.6,5.2148404]
[1771514519154,1.30289764,1918.8,1917.2,5.21591327]
[1771514519155,1.40401601,1918.5,1917.2,5.21591327]
[1771514519349,1.40401601,1918.5,1917.3,1.30391696]
[1771514519579,1.40401601,1918.5,1917.3,2.70234296]
[1771514519920,5.598113,1918.4,1917.3,2.70234296]
[1771514520186,1.40401601,1918.4,1917.3,1.30391696]
[1771514520356,1.40401601,1918.7,1917.4,1.398426]
[1771514520556,0.601,1918.6,1917.4,1.398426]
[1771514520893,1.35471235,1919.2,1917.6,1.35428393]
[1771514521180,0.938,1918.9,1917.6,1.35428393]
[1771514521390,0.601,1918.9,1917.6,1.35428393]
[1771514521590,1.95571235,1918.9,1917.6,1.35428393]
[1771514521752,1.35471235,1918.8,1917.6,1.35428393]
[1771514522087,0.601,1918.7,1917.6,1.35428393]
[1771514522265,0.938,1918.8,1917.6,1.35428393]
[1771514522266,1.35471235,1919.1,1917.6,1.35428393]
[1771514522469,0.6,1919.0,1917.6,1.35428393]
[1771514522663,1.30266839,1919.2,1917.6,1.30428393]
[1771514523000,5.21011224,1919.4,1917.8,1.35428393]
[1771514523290,1.95471235,1919.1,1917.8,1.35428393]
[1771514523458,1.35471235,1919.0,1917.8,1.35428393]
[1771514523663,1.539,1918.9,1917.7,1.30364499]
[1771514523864,1.35471235,1918.8,1917.7,1.30364499]
[1771514524068,1.35471235,1918.6,1917.2,1.35428393]
[1771514524303,1.539,1918.5,1917.2,1.35428393]
[1771514524671,0.6,1918.4,1917.2,1.35428393]
[1771514524984,0.6,1918.4,1917.4,1.35428393]
[1771514525165,0.939,1918.5,1917.4,1.35428393]
[1771514525166,0.6,1918.5,1917.4,1.35428393]
[1771514525686,0.6,1918.7,1917.5,0.591]
[1771514525902,1.35471235,1918.4,1917.3,1.30391696]
[1771514526220,0.6,1918.6,1917.4,1.35428393]
[1771514526371,1.30282974,1918.9,1917.5,1.35428393]
[1771514526572,0.6,1918.8,1917.5,1.35428393]
[1771514526773,1.30281041,1919.0,1917.9,1.37800661]
[1771514527004,1.90281041,1919.0,1917.9,1.37800661]
[1771514527221,1.3745908,1918.8,1917.9,0.0011]
[1771514527866,1.539,1918.7,1917.9,0.0011]
[1771514528269,1.3745908,1918.8,1917.9,0.0011]
[1771514528597,1.539,1918.7,1917.9,0.0011]
[1771514528779,5.21091325,1919.1,1918.1,1.37690661]
[1771514528975,0.6,1919.0,1918.1,1.37690661]
[1771514529176,0.6,1919.5,1918.3,1.37690661]
[1771514529371,2.58349711,1919.8,1918.3,1.37690661]
[1771514529372,1.30228681,1919.7,1918.3,1.37690661]
[1771514529589,0.6,1919.6,1918.3,1.37690661]
[1771514529782,2.67679656,1919.9,1918.3,1.37690661]
[1771514529988,1.3745908,1919.7,1918.3,1.37690661]
[1771514530299,0.6,1919.6,1918.3,1.37690661]
[1771514530484,1.3745908,1919.7,1918.3,1.37690661]
[1771514530682,1.538,1919.6,1918.3,1.37690661]
[1771514530891,1.3024225,1919.5,1918.5,1.37690661]
[1771514531289,3.880803,1919.4,1918.4,1.3031693]
[1771514531492,1.3024225,1919.5,1918.5,1.37690661]
[1771514531703,1.3024225,1919.5,1918.4,1.3031693]
[1771514531704,1.3745908,1919.3,1918.4,1.3031693]
[1771514532218,0.6,1919.2,1918.4,1.3031693]
[1771514532383,0.6,1919.2,1918.4,2.68007591]
[1771514532777,0.599,1919.3,1918.4,2.68007591]
[1771514533005,1.90162053,1919.3,1918.4,2.68007591]
[1771514533209,1.90146316,1919.5,1918.5,1.37690661]
[1771514533376,0.599,1919.5,1918.5,1.37690661]
[1771514533576,1.30221898,1919.8,1918.5,1.37690661]
[1771514534081,0.599,1919.7,1918.5,1.37690661]
[1771514534403,1.90121898,1919.8,1918.5,1.37690661]
[1771514534873,1.3745908,1919.7,1918.5,1.37690661]
[1771514535076,1.30235465,1919.6,1918.6,1.30303346]
[1771514535276,1.30235465,1919.6,1918.7,1.37690661]
[1771514535497,1.90135465,1919.6,1918.7,1.37690661]
[1771514535977,3.27594545,1919.6,1918.6,1.30303346]
[1771514536181,3.27594545,1919.6,1918.5,2.67996332]
[1771514536508,7.02961,1919.4,1918.5,2.67996332]
[1771514536879,2.612435,1919.4,1918.5,2.67996332]
[1771514537073,1.30255822,1919.3,1918.5,2.67996332]
[1771514537276,7.51217111,1919.4,1918.5,2.67996332]
[1771514537277,1.302542,1919.4,1918.5,2.67996332]
[1771514537473,0.599,1919.3,1918.5,2.67996332]
[1771514540705,0.001,1919.6,1919.0,2.67962265]
[1771514541305,0.001,1919.6,1919.1,1.37690661]
[1771514543006,9.6972658,1919.5,1918.1,9.2362598]
[1771514543206,0.60449355,1919.1,1918.2,1.30330518]
[1771514543405,2.67712259,1919.4,1918.2,1.30330518]
[1771514543606,0.001,1919.6,1918.3,1.37690661]
[1771514543805,0.001,1919.6,1918.4,1.37690661]
[1771514544813,1.3745908,1919.5,1918.4,1.37690661]
[1771514545314,1.3745908,1919.5,1918.5,1.30310138]
[1771514545616,1.3745908,1919.4,1918.5,1.30310138]
[1771514547216,1.3745908,1919.4,1918.4,5.21240552]
[1771514547521,1.3745908,1919.4,1918.4,6.58931213]
[1771514547817,0.001,1919.6,1918.5,1.37690661]
[1771514548027,0.001,1919.6,1918.6,1.96790661]
[1771514548220,0.001,1919.6,1918.7,1.37690661]
[1771514549191,0.001,1919.6,1918.8,1.30289764]
[1771514550625,0.001,1919.6,1918.9,1.37690661]
[1771514551299,0.001,1919.6,1919.0,1.30276185]
[1771514551913,0.001,1919.6,1919.0,1.89376185]
[1771514552110,0.001,1919.6,1919.0,3.27066846]
[1771514552510,0.001,1919.6,1919.0,1.89376185]
[1771514553226,0.001,1920.1,1919.1,1.37690661]
[1771514553427,0.001,1920.1,1919.2,2.6795327]
[1771514553831,1.3755908,1920.1,1919.2,1.30262609]
[1771514555427,2.67760914,1920.1,1919.1,5.21050437]
[1771514555631,1.3745908,1919.9,1919.1,5.21050437]
[1771514556203,1.3755908,1920.1,1919.1,5.21050437]
[1771514556403,1.3745908,1920.0,1919.1,1.30269397]
[1771514557045,1.35237174,1919.8,1918.8,0.0011]
[1771514557335,1.3024225,1919.5,1918.8,0.0011]
[1771514557544,1.35237174,1919.4,1918.8,0.0011]
[1771514557838,0.594,1919.3,1918.8,0.0011]
[1771514558210,0.594,1919.3,1918.6,0.0011]
[1771514558211,1.35237174,1919.2,1918.6,0.0011]
[1771514559642,1.89669397,1919.1,1918.6,0.0011]
[1771514559846,1.35237174,1919.0,1918.6,0.0011]
[1771514560008,1.35237174,1919.0,1918.1,1.30334735]
[1771514560203,1.35237174,1919.0,1918.2,0.0011]
[1771514560404,1.35237174,1919.0,1917.9,0.0011]
[1771514560604,1.35237174,1918.6,1917.9,0.0011]
[1771514560801,1.35237174,1918.4,1917.9,0.0011]
[1771514561435,6.16160898,1918.3,1917.9,0.0011]
[1771514561635,1.35237174,1918.2,1917.9,0.0011]
[1771514562521,4.332087,1918.4,1917.9,0.0022]
[1771514562837,6.51813174,1918.3,1917.9,0.0011]
[1771514563130,1.35237174,1918.2,1917.8,0.0011]
[1771514563335,1.35237174,1918.2,1917.6,0.0011]
[1771514563533,2.65574486,1918.1,1917.6,0.0011]
[1771514563830,0.596,1918.0,1917.6,0.0011]
[1771514564433,30.0,1917.4,1916.6,1.30738865]
[1771514564632,2.82293697,1917.8,1916.7,1.33448194]
[1771514564633,0.0022,1917.5,1916.7,1.33448194]
[1771514564950,1.35237174,1918.0,1916.7,1.33448194]
[1771514565134,0.597,1917.9,1916.7,1.33448194]
[1771514565545,1.94937174,1917.9,1916.7,1.33448194]
[1771514565712,2.65594875,1917.8,1916.8,1.30425709]
[1771514565912,3.065841,1917.7,1916.8,1.30425709]
[1771514566127,2.65594875,1917.8,1916.8,1.30425709]
[1771514566450,0.596,1917.7,1916.8,1.30425709]
[1771514567250,0.596,1918.0,1916.8,2.63873903]
[1771514567417,0.596,1918.0,1917.7,0.0011]
[1771514567610,1.89949473,1918.0,1917.7,0.0011]
[1771514567811,0.596,1917.9,1917.7,0.0011]
[1771514568128,1.94937174,1918.1,1917.7,0.0011]
[1771514568332,6.15177674,1918.4,1917.7,0.0011]
[1771514568333,1.35237174,1918.4,1917.7,0.0011]
[1771514568511,3.137528,1918.6,1917.7,0.0011]
[1771514568839,2.09983,1918.9,1917.7,1.33558194]
[1771514569139,0.597,1918.9,1917.7,1.33558194]
[1771514569351,0.598,1919.3,1917.9,9.79333395]
[1771514569640,1.35237174,1919.2,1918.3,1.30323724]
[1771514569826,1.94937174,1919.1,1917.9,5.21397815]
[1771514570029,1.35237174,1918.9,1917.9,1.30350904]
[1771514570227,0.596,1918.8,1917.8,1.30352901]
[1771514570428,0.596,1918.8,1917.7,5.21553459]
[1771514570429,1.35237174,1918.7,1917.7,1.30470706]
[1771514570632,0.596,1918.6,1917.7,1.30470706]
[1771514570812,1.35237174,1918.7,1917.7,1.30470706]
[1771514571008,0.596,1918.6,1917.7,1.30470706]
[1771514571212,1.94837174,1918.7,1917.7,1.30470706]
[1771514571813,1.35237174,1918.7,1917.7,1.30470706]
[1771514572239,1.94837174,1918.7,1917.7,1.30470706]
[1771514572543,0.596,1918.8,1917.7,1.30470706]
[1771514573047,1.35237174,1918.7,1917.8,0.59]
[1771514573215,1.35237174,1918.6,1917.8,0.59]
[1771514574051,1.30310138,1918.5,1917.8,1.89354296]
[1771514574221,1.35237174,1918.4,1917.8,1.8935657]
[1771514574544,1.89908203,1918.6,1917.8,1.30356969]
[1771514575245,1.30308203,1918.6,1917.8,1.30356969]
[1771514575619,2.65545377,1918.6,1917.7,0.0011]
[1771514575819,1.35237174,1918.5,1917.7,1.30474133]